bitfinex/quotes_SOLUSD_20241220
["timestamp","ask_amount","ask_price","bid_price","bid_amount"]
[1734692418954,25.86854076,183.0,182.92,25.86854076]
[1734692419158,25.86854076,183.0,182.9,25.86854076]
[1734692419793,25.86854076,183.02,182.92,25.86854076]
[1734692420498,25.86854076,183.0,182.9,25.86854076]
[1734692420973,25.86854076,183.0,182.81,2.19629861]
[1734692420974,25.86854076,183.08,182.98,25.86854076]
[1734692421286,25.86854076,183.06,182.99,25.86854076]
[1734692421492,25.86854076,183.04,182.91,6.575]
[1734692421690,25.86854076,183.02,182.94,25.86854076]
[1734692421893,25.86854076,183.0,182.92,25.86854076]
[1734692422198,25.86854076,182.98,182.9,25.86854076]
[1734692423284,3.1903,183.04,182.88,25.86854076]
[1734692423285,25.86854076,182.96,182.88,25.86854076]
[1734692423589,25.86854076,182.96,182.84,2.9752]
[1734692423590,25.86854076,182.92,182.84,25.86854076]
[1734692424104,25.86854076,182.96,182.88,25.86854076]
[1734692424601,6.038,182.98,182.85,25.86854076]
[1734692424602,25.86854076,182.92,182.85,25.86854076]
[1734692424770,25.86854076,182.97,182.85,25.86854076]
[1734692424771,45.86854076,182.94,182.85,25.86854076]
[1734692425173,25.86854076,182.94,182.85,25.86854076]
[1734692425369,25.37160556,182.94,182.85,25.86854076]
[1734692425884,25.86854076,183.0,182.91,25.86854076]
[1734692426094,25.86854076,182.98,182.89,25.86854076]
[1734692427079,25.86854076,182.98,182.9,0.81985814]
[1734692427293,6.2872,183.03,182.93,25.86854076]
[1734692427294,25.86854076,183.0,182.93,25.86854076]
[1734692427498,33.1418,183.09,182.97,25.86854076]
[1734692427499,25.86854076,183.04,182.97,25.86854076]
[1734692427799,25.86854076,183.06,182.99,25.86854076]
[1734692427963,25.86854076,183.06,183.0,0.81937461]
[1734692428164,25.86854076,183.08,183.0,0.81937461]
[1734692428431,25.86854076,183.06,182.99,25.86854076]
[1734692428583,3.67,183.13,183.0,0.81940605]
[1734692428584,25.86854076,183.08,183.0,0.81940605]
[1734692428791,25.86854076,183.06,182.99,25.86854076]
[1734692428982,42.00820648,183.07,182.99,42.00820648]
[1734692429384,42.00820648,183.07,183.0,0.81938131]
[1734692429579,42.00820648,183.11,183.03,42.00820648]
[1734692429785,42.00820648,183.11,183.04,42.82741655]
[1734692429988,42.00820648,183.1,183.02,42.00820648]
[1734692430298,42.00820648,183.06,182.98,42.00820648]
[1734692430501,42.00820648,183.04,182.96,42.00820648]
[1734692430670,42.00820648,183.02,182.94,42.00820648]
[1734692430873,42.00820648,182.98,182.92,21.877401]
[1734692431072,42.00820648,182.98,182.9,45.09450648]
[1734692431292,42.00820648,183.0,182.92,42.00820648]
[1734692431882,42.00820648,183.02,182.94,42.00820648]
[1734692433293,42.00820648,183.04,182.95,0.81958801]
[1734692433495,42.00820648,183.04,182.96,42.00820648]
[1734692434093,42.00820648,183.06,182.98,42.00820648]
[1734692434766,42.00820648,183.02,182.94,42.00820648]
[1734692434967,42.00820648,183.0,182.92,42.00820648]
[1734692435592,42.00820648,183.0,182.93,0.8197087]
[1734692435976,42.00820648,183.02,182.94,42.00820648]
[1734692436181,42.00820648,183.0,182.93,0.8197087]
[1734692436482,42.00820648,183.0,182.92,42.00820648]
[1734692436791,42.00820648,183.02,182.95,20.0]
[1734692436996,42.00820648,183.02,182.94,42.00820648]
[1734692437202,42.00820648,182.98,182.91,0.81967893]
[1734692437495,42.00820648,182.94,182.85,42.00820648]
[1734692437680,42.00820648,182.94,182.86,0.81992483]
[1734692438580,42.00820648,183.0,182.91,42.00820648]
[1734692438900,42.00820648,182.98,182.89,42.00820648]
[1734692439078,42.00820648,182.96,182.9,20.0]
[1734692439277,6.3115,183.01,182.87,42.82793299]
[1734692439278,42.00820648,182.94,182.87,42.82793299]
[1734692439487,42.00820648,182.92,182.82,44.99960648]
[1734692439686,42.00820648,182.92,182.83,0.82011957]
[1734692439880,42.00820648,182.92,182.84,42.00820648]
[1734692440096,42.00820648,182.94,182.86,42.00820648]
[1734692440604,42.00820648,182.98,182.9,42.00820648]
[1734692440781,42.00820648,183.0,182.92,42.00820648]
[1734692440970,12.17499383,183.05,182.94,42.00820648]
[1734692440971,42.00820648,183.02,182.94,42.00820648]
[1734692441176,42.00820648,183.02,182.93,0.81973608]
[1734692441177,42.00820648,183.02,182.92,42.00820648]
[1734692441377,42.00820648,183.0,182.92,42.00820648]
[1734692441799,42.00820648,183.0,182.93,0.81975084]
[1734692442396,42.00820648,183.0,182.92,42.00820648]
[1734692442912,42.00820648,183.04,182.94,42.00820648]
[1734692443101,42.00820648,183.04,182.95,0.81956116]
[1734692443476,6.2877,183.07,182.96,42.00820648]
[1734692443677,42.00820648,183.06,182.98,42.00820648]
[1734692444493,42.00820648,183.06,182.99,0.81944187]
[1734692444692,42.00820648,183.02,182.94,42.00820648]
[1734692444896,42.00820648,183.02,182.92,42.00820648]
[1734692445204,42.00820648,182.98,182.9,42.00820648]
[1734692445808,42.00820648,183.0,182.91,0.81984157]
[1734692446307,42.00820648,182.98,182.9,42.00820648]
[1734692447793,42.00820648,183.0,182.92,42.00820648]
[1734692448080,42.00820648,183.0,182.93,0.81968691]
[1734692448284,42.00820648,183.02,182.94,42.00820648]
[1734692449199,42.00820648,183.04,182.94,42.00820648]
[1734692449389,42.00820648,183.04,182.96,42.00820648]
[1734692449589,42.00820648,183.04,182.97,0.81946956]
[1734692450108,42.00820648,183.08,183.0,42.00820648]
[1734692450322,42.00820648,183.08,183.01,0.81931226]
[1734692450797,42.00820648,183.1,183.02,42.00820648]
[1734692450998,25.83881,183.11,183.03,26.6579956]
[1734692451311,25.83881,183.07,182.99,25.83881]
[1734692452902,25.83881,183.07,183.01,25.83881]
[1734692453096,25.83881,183.09,183.01,25.83881]
[1734692454216,25.83881,183.11,183.03,25.83881]
[1734692454413,25.83881,183.07,182.99,25.83881]
[1734692454716,25.83881,183.07,183.0,0.81932787]
[1734692454916,25.83881,183.09,183.01,25.83881]
[1734692455323,25.83881,183.09,183.02,0.819313]
[1734692456213,25.83881,183.11,183.03,25.83881]
[1734692456601,25.83881,183.13,183.05,25.83881]
[1734692456800,25.83881,183.11,183.03,25.83881]
[1734692458819,25.83881,183.14,183.05,25.83881]
[1734692459008,25.83881,183.12,183.05,25.83881]
[1734692459998,25.83881,183.14,183.05,25.83881]
[1734692460399,9.5667,183.17,183.05,25.83881]
[1734692460400,25.83881,183.12,183.05,25.83881]
[1734692461013,25.83881,183.14,183.05,25.83881]
[1734692461206,25.83881,183.1,183.03,25.83881]
[1734692461417,25.83881,183.15,182.99,0.81911309]
[1734692461418,25.83881,183.08,183.01,25.83881]
[1734692461604,25.83881,183.06,182.98,25.83881]
[1734692461805,25.83881,183.04,182.96,26.65821157]
[1734692462007,25.83881,183.0,182.92,25.83881]
[1734692462225,25.83881,182.98,182.9,25.83881]
[1734692462423,25.83881,182.96,182.88,25.83881]
[1734692462614,25.83881,182.98,182.88,25.83881]
[1734692462803,25.83881,182.98,182.9,25.83881]
[1734692463002,25.83881,183.04,182.96,25.83881]
[1734692463310,25.83881,183.05,182.98,25.83881]
[1734692463621,25.83881,183.01,182.92,25.83881]
[1734692463811,32.31301,183.06,182.92,25.83881]
[1734692463812,25.83881,182.99,182.92,25.83881]
[1734692464527,25.83881,182.97,182.9,25.83881]
[1734692464842,32.31301,183.06,182.92,25.83881]
[1734692464843,25.83881,183.01,182.92,25.83881]
[1734692465125,6.4742,183.06,182.96,25.83881]
[1734692465328,25.83881,183.05,182.96,25.83881]
[1734692466130,25.83881,183.03,182.96,25.83881]
[1734692466301,25.83881,183.01,182.94,25.83881]
[1734692466508,25.83881,182.99,182.92,25.83881]
[1734692466927,25.83881,183.01,182.94,25.83881]
[1734692467124,20.0,183.03,182.91,20.81967509]
[1734692467430,25.83881,183.03,182.95,20.0]
[1734692467725,25.83881,183.03,182.94,25.83881]
[1734692467939,25.83881,183.03,182.96,25.83881]
[1734692468108,6.4742,183.06,182.98,25.83881]
[1734692468310,25.83881,183.05,182.98,25.83881]
[1734692469140,25.83881,183.03,182.96,25.83881]
[1734692470248,25.83881,183.01,182.92,26.65824373]
[1734692470614,25.83881,182.95,182.84,3.0354]
[1734692470820,25.83881,182.91,182.83,0.81966472]
[1734692471330,25.83881,182.93,182.84,25.83881]
[1734692471818,25.83881,182.89,182.79,22.71255967]
[1734692472014,25.83881,182.87,182.8,25.83881]
[1734692472249,25.83881,182.85,182.76,48.55525508]
[1734692472426,25.83881,182.85,182.76,26.65911508]
[1734692472747,25.83881,182.83,182.74,25.83881]
[1734692473644,25.83881,182.81,182.74,25.83881]
[1734692473833,25.83881,182.79,182.7,25.83881]
[1734692475042,42.14222775,182.78,182.69,42.14222775]
[1734692475239,42.14222775,182.78,182.67,21.90741]
[1734692475240,42.14222775,182.74,182.67,21.90741]
[1734692475435,42.14222775,182.79,182.65,0.82090999]
[1734692475436,42.14222775,182.72,182.65,0.82090999]
[1734692475759,42.14222775,182.68,182.61,42.14222775]
[1734692475917,42.14222775,182.79,182.59,0.6768074]
[1734692475918,42.14222775,182.66,182.59,0.6768074]
[1734692476349,42.14222775,182.68,182.59,43.64030981]
[1734692476643,42.14222775,182.66,182.59,0.6768074]
[1734692476845,42.14222775,182.62,182.59,0.6768074]
[1734692477141,42.14222775,182.6,182.59,0.6768074]
[1734692478019,42.14222775,182.6,182.44,0.82145447]
[1734692478226,42.14222775,182.5,182.41,43.64079016]
[1734692478447,42.14222775,182.48,182.41,1.49856241]
[1734692478643,42.14222775,182.42,182.41,0.6768074]
[1734692478947,42.14222775,182.42,182.31,0.82214971]
[1734692479129,42.14222775,182.42,182.29,8.01816804]
[1734692479130,42.14222775,182.37,182.29,0.82238748]
[1734692479449,42.14222775,182.38,182.29,42.14222775]
[1734692479850,42.14222775,182.38,182.23,1.49949033]
[1734692480038,49.7445,182.47,182.33,42.14222775]
[1734692480039,30.0,182.45,182.33,42.14222775]
[1734692480356,42.14222775,182.42,182.33,42.14222775]
[1734692480652,42.14222775,182.42,182.26,0.82261806]
[1734692480653,42.14222775,182.46,182.4,20.0]
[1734692480984,13.6942,182.56,182.34,42.14222775]
[1734692480985,42.14222775,182.5,182.42,20.0]
[1734692481125,42.14222775,182.5,182.44,20.0]
[1734692481566,42.14222775,182.52,182.45,20.0]
[1734692481864,42.14222775,182.52,182.35,0.82200872]
[1734692481865,42.14222775,182.54,182.47,20.0]
[1734692482456,42.14222775,182.61,182.51,42.14222775]
[1734692482663,42.14222775,182.61,182.54,20.0]
[1734692483031,6.3745,182.65,182.56,20.0]
[1734692483244,42.14222775,182.65,182.6,20.0]
[1734692483934,42.14222775,182.63,182.58,20.0]
[1734692484136,42.14222775,182.63,182.56,20.0]
[1734692484341,42.14222775,182.61,182.56,20.0]
[1734692484541,42.14222775,182.63,182.56,20.0]
[1734692484744,42.14222775,182.65,182.6,20.0]
[1734692484950,42.14222775,182.69,182.6,20.0]
[1734692485151,42.14222775,182.71,182.64,20.0]
[1734692485479,42.14222775,182.75,182.66,62.14222775]
[1734692485639,42.14222775,182.79,182.73,20.0]
[1734692485839,42.14222775,182.81,182.75,20.0]
[1734692486053,42.14222775,182.83,182.75,20.0]
[1734692486256,42.81903515,182.87,182.81,20.0]
[1734692486458,0.6768074,182.87,182.83,20.0]
[1734692486675,0.6768074,182.87,182.85,20.0]
[1734692486974,0.6768074,182.87,182.86,42.14222775]
[1734692488056,0.6768074,182.87,182.83,20.0]
[1734692488438,42.81903515,182.87,182.78,42.14222775]
[1734692488638,42.14222775,182.85,182.76,42.14222775]
[1734692488867,42.14222775,182.79,182.71,0.82018362]
[1734692489048,42.14222775,182.77,182.66,42.14222775]
[1734692489252,42.14222775,182.77,182.61,74.34222775]
[1734692489253,42.14222775,182.73,182.62,42.96290189]
[1734692489556,42.14222775,182.79,182.58,42.14222775]
[1734692489557,42.14222775,182.67,182.58,42.14222775]
[1734692489760,42.14222775,182.65,182.55,0.82087275]
[1734692489968,42.14222775,182.65,182.55,42.14222775]
[1734692490140,42.14222775,182.7,182.55,42.14222775]
[1734692490141,42.14222775,182.63,182.55,42.14222775]
[1734692490342,42.14222775,182.65,182.57,42.14222775]
[1734692490542,69.17733657,182.79,182.61,42.14222775]
[1734692490543,42.14222775,182.69,182.61,42.14222775]
[1734692490846,42.14222775,182.71,182.61,42.14222775]
[1734692491063,42.14222775,182.63,182.53,42.96366913]
[1734692491369,42.14222775,182.6,182.51,42.14222775]
[1734692491551,42.14222775,182.56,182.47,42.14222775]
[1734692491752,42.14222775,182.54,182.45,42.14222775]
[1734692491953,42.14222775,182.56,182.47,42.14222775]
[1734692492263,42.14222775,182.6,182.51,42.14222775]
[1734692492657,42.14222775,182.56,182.47,42.14222775]
[1734692492860,42.14222775,182.58,182.49,42.14222775]
[1734692493162,42.14222775,182.57,182.47,42.14222775]
[1734692493360,42.14222775,182.55,182.45,42.14222775]
[1734692493755,42.14222775,182.53,182.43,42.14222775]
[1734692494062,20.0,182.47,182.35,0.82180434]
[1734692494262,42.14222775,182.43,182.34,42.14222775]
[1734692494671,42.14222775,182.46,182.36,42.14222775]
[1734692495168,2.17151982,182.51,182.36,42.14222775]
[1734692495169,42.14222775,182.44,182.36,42.14222775]
[1734692495572,42.14222775,182.42,182.32,42.14222775]
[1734692495775,42.14222775,182.4,182.3,42.14222775]
[1734692496450,42.14222775,182.38,182.28,42.14222775]
[1734692496770,42.14222775,182.4,182.3,42.14222775]
[1734692497072,42.14222775,182.38,182.28,42.14222775]
[1734692497469,42.14222775,182.36,182.26,42.14222775]
[1734692497878,20.0,182.33,182.23,0.6768074]
[1734692498065,20.0,182.33,182.25,42.14222775]
[1734692498265,42.14222775,182.34,182.25,42.14222775]
[1734692498689,42.14222775,182.32,182.23,42.81903515]
[1734692499591,44.3781475,182.34,182.25,42.14222775]
[1734692499800,42.14222775,182.38,182.27,42.14222775]
[1734692499959,20.0,182.35,182.27,42.14222775]
[1734692500286,42.14222775,182.34,182.25,42.14222775]
[1734692500972,42.14222775,182.4,182.29,42.14222775]
[1734692501177,42.14222775,182.36,182.25,42.14222775]
[1734692501354,42.14222775,182.33,182.23,1.49959144]
[1734692501560,42.14222775,182.33,182.24,42.14222775]
[1734692501875,42.14222775,182.35,182.26,42.14222775]
[1734692502177,42.14222775,182.35,182.25,0.8228001]
[1734692502366,42.14222775,182.35,182.26,42.14222775]
[1734692502561,42.14222775,182.39,182.29,42.14222775]
[1734692502762,42.14222775,182.41,182.31,42.14222775]
[1734692502970,42.14222775,182.41,182.33,42.14222775]
[1734692503278,42.14222775,182.37,182.28,62.14222775]
[1734692503503,42.14222775,182.41,182.29,0.82253942]
[1734692503681,48.38552775,182.43,182.32,42.14222775]
[1734692503982,48.38552775,182.43,182.37,20.0]
[1734692504158,48.38552775,182.43,182.34,42.14222775]
[1734692504978,42.14222775,182.45,182.37,20.0]
[1734692505359,42.14222775,182.43,182.34,0.82220026]
[1734692505565,42.14222775,182.41,182.33,20.0]
[1734692505771,42.14222775,182.39,182.28,42.14222775]
[1734692505978,42.14222775,182.39,182.3,42.96467579]
[1734692506177,42.14222775,182.41,182.32,42.14222775]
[1734692506493,42.14222775,182.45,182.36,42.14222775]
[1734692507283,42.14222775,182.41,182.28,20.0]
[1734692507460,42.14222775,182.39,182.32,20.0]
[1734692507658,42.14222775,182.41,182.32,20.0]
[1734692507859,42.14222775,182.41,182.32,20.82248016]
[1734692508493,42.14222775,182.39,182.29,42.14222775]
[1734692508681,42.14222775,182.41,182.3,0.82247042]
[1734692508889,42.14222775,182.37,182.27,42.14222775]
[1734692509184,42.14222775,182.37,182.28,0.82258187]
[1734692510386,42.14222775,182.41,182.31,42.14222775]
[1734692510586,42.14222775,182.43,182.33,42.14222775]
[1734692510884,42.14222775,182.43,182.25,107.25222775]
[1734692510885,42.14222775,182.45,182.35,42.14222775]
[1734692511088,42.14222775,182.45,182.34,0.82226306]
[1734692511089,42.14222775,182.45,182.36,0.82220989]
[1734692511292,42.14222775,182.43,182.32,42.14222775]
[1734692511504,24.59859566,182.51,182.27,32.91]
[1734692511505,42.14222775,182.47,182.4,20.0]
[1734692511673,42.14222775,182.49,182.39,42.14222775]
[1734692511867,42.14222775,182.49,182.4,0.82204073]
[1734692512196,42.14222775,182.49,182.42,20.0]
[1734692512508,42.14222775,182.55,182.45,42.14222775]
[1734692512666,42.14222775,182.57,182.47,42.14222775]
[1734692512867,42.14222775,182.49,182.42,20.0]
[1734692513076,42.14222775,182.47,182.38,42.14222775]
[1734692513270,42.14222775,182.47,182.39,20.0]
[1734692513490,42.14222775,182.47,182.4,0.82218336]
[1734692513705,42.14222775,182.51,182.43,20.0]
[1734692513867,42.14222775,182.51,182.42,42.96412015]
[1734692514314,6.4808,182.59,182.38,42.14222775]
[1734692514315,42.14222775,182.47,182.38,42.14222775]
[1734692514801,42.14222775,182.49,182.38,42.14222775]
[1734692515108,42.14222775,182.47,182.39,20.82200359]
[1734692515411,42.14222775,182.49,182.39,0.82202762]
[1734692516104,42.14222775,182.49,182.4,42.14222775]
[1734692516284,42.14222775,182.47,182.38,42.14222775]
[1734692516490,42.14222775,182.49,182.4,42.14222775]
[1734692517405,42.14222775,182.46,182.35,42.96428475]
[1734692518307,30.0,182.53,182.35,42.96428475]
[1734692518605,42.14222775,182.5,182.4,42.14222775]
[1734692518809,42.14222775,182.48,182.38,42.14222775]
[1734692519304,42.14222775,182.44,182.34,42.14222775]
[1734692519508,42.14222775,182.52,182.37,20.0]
[1734692519509,42.14222775,182.46,182.37,20.0]
[1734692519678,42.14222775,182.5,182.4,42.14222775]
[1734692519877,42.14222775,182.5,182.4,42.96423561]
[1734692520111,42.14222775,182.48,182.38,42.14222775]
[1734692520467,42.14222775,182.48,182.28,32.2]
[1734692520468,42.14222775,182.5,182.4,42.14222775]
[1734692520702,42.14222775,182.52,182.42,42.14222775]
[1734692520906,42.14222775,182.48,182.38,42.14222775]
[1734692521199,42.14222775,182.48,182.39,0.82207364]
[1734692521595,42.14222775,182.5,182.4,42.14222775]
[1734692521784,42.14222775,182.5,182.39,0.82207364]
[1734692521785,42.14222775,182.58,182.5,20.0]
[1734692521969,6.4808,182.59,182.53,42.14222775]
[1734692522293,6.4808,182.59,182.5,20.0]
[1734692522294,6.2668,182.68,182.57,42.14222775]
[1734692522502,6.2668,182.68,182.51,33.02122301]
[1734692522503,42.14222775,182.64,182.51,33.02122301]
[1734692522685,42.14222775,182.63,182.53,42.14222775]
[1734692522894,42.14222775,182.67,182.58,20.0]
[1734692523088,6.2668,182.68,182.61,42.14222775]
[1734692523284,42.14222775,182.71,182.63,42.14222775]
[1734692523500,6.2514,182.75,182.66,20.0]
[1734692523695,42.14222775,182.77,182.67,42.14222775]
[1734692523891,42.14222775,182.77,182.68,0.82082095]
[1734692524093,6.2514,182.83,182.68,0.82082095]
[1734692524291,42.14222775,182.72,182.62,42.14222775]
[1734692524999,42.14222775,182.7,182.6,42.14222775]
[1734692525381,42.14222775,182.72,182.62,42.14222775]
[1734692525699,42.14222775,182.74,182.64,42.14222775]
[1734692525882,42.14222775,182.74,182.52,42.14222775]
[1734692525883,42.14222775,182.68,182.58,42.96323065]
[1734692526079,42.14222775,182.7,182.6,42.14222775]
[1734692526514,42.14222775,182.7,182.53,33.02112854]
[1734692526515,42.14222775,182.68,182.53,33.02112854]
[1734692526711,42.14222775,182.64,182.54,42.14222775]
[1734692526995,42.14222775,182.68,182.6,42.14222775]
[1734692527195,42.14222775,182.73,182.64,42.14222775]
[1734692527511,42.14222775,182.79,182.66,42.14222775]
[1734692527512,42.14222775,182.75,182.66,42.14222775]
[1734692527714,42.14222775,182.73,182.62,42.14222775]
[1734692527921,42.14222775,182.71,182.62,42.14222775]
[1734692528216,42.14222775,182.69,182.6,42.14222775]
[1734692528412,42.14222775,182.79,182.57,42.14222775]
[1734692528413,42.14222775,182.67,182.57,42.14222775]
[1734692528580,42.14222775,182.61,182.53,42.14222775]
[1734692528774,42.14222775,182.61,182.51,42.14222775]
[1734692528983,42.14222775,182.59,182.49,42.14222775]
[1734692529385,42.14222775,182.57,182.47,42.14222775]
[1734692529604,42.14222775,182.53,182.43,42.14222775]
[1734692529985,42.14222775,182.53,182.45,42.14222775]
[1734692530186,42.14222775,182.53,182.43,42.14222775]
[1734692530390,42.14222775,182.53,182.37,0.8217988]
[1734692530391,42.14222775,182.55,182.45,42.14222775]
[1734692530588,42.14222775,182.57,182.47,42.14222775]
[1734692530789,42.14222775,182.57,182.49,42.14222775]
[1734692531195,42.14222775,182.61,182.51,42.14222775]
[1734692531385,42.14222775,182.56,182.47,42.14222775]
[1734692531586,42.14222775,182.6,182.52,23.776884]
[1734692531802,42.14222775,182.64,182.55,42.14222775]
[1734692532004,6.0768,182.69,182.55,20.0]
[1734692532205,42.14222775,182.66,182.57,42.14222775]
[1734692532393,42.14222775,182.64,182.55,62.14222775]
[1734692532595,42.14222775,182.64,182.58,23.776884]
[1734692532796,42.14222775,182.66,182.58,23.776884]
[1734692533299,42.14222775,182.64,182.58,23.776884]
[1734692533704,42.14222775,182.68,182.59,42.14222775]
[1734692533903,42.14222775,182.66,182.6,23.776884]
[1734692534107,42.14222775,182.62,182.6,23.776884]
[1734692534302,42.14222775,182.64,182.56,42.14222775]
[1734692534609,42.14222775,182.66,182.59,23.776884]
[1734692534788,6.0768,182.69,182.59,23.776884]
[1734692534986,42.14222775,182.64,182.59,23.776884]
[1734692535211,42.14222775,182.62,182.54,42.14222775]
[1734692535392,42.14222775,182.64,182.54,42.14222775]
[1734692535987,42.14222775,182.66,182.56,42.14222775]
[1734692536187,42.14222775,182.66,182.57,0.8213173]
[1734692536392,42.14222775,182.66,182.58,42.14222775]
[1734692536594,42.14222775,182.66,182.6,23.776884]
[1734692537001,42.14222775,182.66,182.58,23.776884]
[1734692537207,42.14222775,182.66,182.58,65.91911175]
[1734692537494,42.14222775,182.7,182.63,20.0]
[1734692537696,36.5324,182.76,182.6,42.14222775]
[1734692537901,42.14222775,182.68,182.58,23.776884]
[1734692538205,42.14222775,182.66,182.58,23.776884]
[1734692538402,42.14222775,182.66,182.57,42.14222775]
[1734692538605,42.14222775,182.64,182.55,42.14222775]
[1734692539112,42.14222775,182.64,182.56,0.82140474]
[1734692539409,42.14222775,182.64,182.55,42.14222775]
[1734692539712,42.14222775,182.72,182.61,42.14222775]
[1734692539921,42.14222775,182.7,182.61,42.14222775]
[1734692540110,42.14222775,182.68,182.59,42.14222775]
[1734692540285,36.5324,182.76,182.56,0.82104365]
[1734692540286,42.14222775,182.66,182.57,42.14222775]
[1734692540492,42.14222775,182.68,182.61,23.776884]
[1734692540692,42.14222775,182.7,182.61,66.74023487]
[1734692540993,42.14222775,182.68,182.61,23.776884]
[1734692541813,42.14222775,182.7,182.62,0.82110767]
[1734692542020,42.14222775,182.72,182.66,20.0]
[1734692542186,6.5324,182.76,182.67,20.0]
[1734692542187,42.14222775,182.74,182.67,20.0]
[1734692542392,42.14222775,182.72,182.67,20.0]
[1734692542615,42.14222775,182.76,182.69,20.0]
[1734692542793,42.14222775,182.78,182.71,20.0]
[1734692543093,42.14222775,182.76,182.71,20.82064375]
[1734692543294,42.14222775,182.76,182.71,20.0]
[1734692543494,42.14222775,182.74,182.68,23.776884]
[1734692543923,42.14222775,182.74,182.64,42.14222775]
[1734692544100,42.14222775,182.74,182.61,55.976884]
[1734692544101,42.14222775,182.7,182.61,23.776884]
[1734692544299,42.14222775,182.7,182.61,23.97039119]
[1734692544499,42.14222775,182.72,182.63,23.776884]
[1734692544716,42.14222775,182.7,182.63,23.776884]
[1734692544915,42.14222775,182.79,182.64,42.96326548]
[1734692544916,42.14222775,182.72,182.64,42.96326548]
[1734692545099,42.14222775,182.72,182.64,0.82103773]
[1734692545316,42.14222775,182.74,182.65,0.82105377]
[1734692545810,42.14222775,182.74,182.67,20.0]
[1734692546017,42.14222775,182.72,182.67,20.0]
[1734692546398,42.14222775,182.74,182.68,23.776884]
[1734692546721,42.14222775,182.76,182.68,23.776884]
[1734692547104,42.14222775,182.78,182.69,0.82079575]
[1734692547300,42.14222775,182.78,182.7,23.776884]
[1734692547522,42.14222775,182.8,182.73,20.0]
[1734692547827,42.14222775,182.78,182.73,20.0]
[1734692548212,42.14222775,182.78,182.74,23.776884]
[1734692548505,42.14222775,182.8,182.74,23.776884]
[1734692548910,6.25,182.84,182.74,65.91911175]
[1734692548911,42.14222775,182.82,182.74,65.91911175]
[1734692549121,42.14222775,182.84,182.77,20.0]
[1734692549331,42.14222775,182.84,182.78,23.776884]
[1734692550224,0.6768074,182.87,182.82,65.91911175]
[1734692550521,33.0849,183.03,182.85,62.14222775]
[1734692550522,42.14222775,182.96,182.85,62.14222775]
[1734692550744,42.14222775,182.98,182.89,42.14222775]
[1734692551396,42.14222775,182.98,182.9,0.81984527]
[1734692552103,42.14222775,183.0,182.91,42.14222775]
[1734692552310,42.14222775,183.0,182.92,0.81974467]
[1734692552513,42.14222775,182.98,182.91,20.0]
[1734692552731,42.14222775,183.0,182.91,0.81976302]
[1734692552906,42.14222775,183.04,182.95,42.14222775]
[1734692553107,0.6768074,183.05,183.0,20.0]
[1734692553412,0.6768074,183.05,183.02,20.0]
[1734692553819,0.6768074,183.05,183.04,20.0]
[1734692554531,0.6768074,183.05,183.02,0.81925007]
[1734692554707,0.6768074,183.05,183.04,20.0]
[1734692554902,0.6768074,183.05,182.99,42.14222775]
[1734692556131,0.6768074,183.05,183.01,42.14222775]
[1734692556627,0.6768074,183.05,183.02,0.81928682]
[1734692557231,0.6768074,183.05,182.99,42.14222775]
[1734692557541,0.6768074,183.05,183.02,20.0]
[1734692557710,0.6768074,183.05,183.03,42.14222775]
[1734692557921,0.6768074,183.05,183.03,42.96138885]
[1734692558844,0.6768074,183.05,183.03,42.14222775]
[1734692559133,0.6768074,183.05,183.04,0.81926723]
[1734692559939,0.6768074,183.05,183.01,42.14222775]
[1734692560127,0.6768074,183.05,182.96,0.81941893]
[1734692560128,42.14222775,183.04,182.96,0.81941893]
[1734692560327,42.14222775,183.02,182.93,42.14222775]
[1734692560517,42.14222775,183.02,182.94,0.81961144]
[1734692560716,0.6768074,183.05,182.95,42.14222775]
[1734692560717,42.14222775,183.04,182.95,42.14222775]
[1734692561037,42.14222775,183.02,182.93,42.14222775]
[1734692561250,42.14222775,183.04,182.95,42.14222775]
[1734692561419,42.14222775,183.02,182.93,42.14222775]
[1734692561621,42.14222775,183.04,182.95,42.14222775]
[1734692561850,42.14222775,183.04,182.96,0.81955393]
[1734692562141,0.6768074,183.05,182.97,42.14222775]
[1734692562312,42.14222775,183.04,182.97,42.14222775]
[1734692562509,42.14222775,183.04,182.95,42.14222775]
[1734692562711,42.14222775,183.04,182.96,0.81961654]
[1734692563037,0.6768074,183.05,182.99,42.14222775]
[1734692563337,0.6768074,183.05,183.01,42.14222775]
[1734692563915,0.6768074,183.05,183.02,20.0]
[1734692564218,0.6768074,183.05,183.04,20.0]
[1734692564420,0.6768074,183.05,182.99,42.14222775]
[1734692565235,0.6768074,183.05,182.97,42.14222775]
[1734692565729,0.6768074,183.05,182.99,42.14222775]
[1734692566344,0.6768074,183.05,183.04,15.0]
[1734692567041,0.6768074,183.05,183.04,15.81910409]